{"text_format":"3","workbook":"xlsx","n_sheets":6,"sheets":["Säljsamtalslogg","Kontaktinformation för kund","Innan uppringning","Första samtal","Säljinformation","Uppföljning"],"not_rendered":{"defined_names":14},"read":"whole","date_system":"1900"}

{"sheet":"Säljsamtalslogg","index":0,"n_rows":13,"n_cols":7,"rows_kept":13}
[null," Företagets namn"]
[null,"Säljsamtalslogg"]
[null,"Samtal #","Kund","Företag","Datum","Tid","Anteckningar"]
[null,1,"Mattias Mattsson",{"$f":"IF(Säljsamtalslogg[[#This Row],[Kund]]=\"\",\"\",IFERROR(VLOOKUP(Säljsamtalslogg[[#This Row],[Kund]],KontaktinformationFörKund[],2,0),\"Not Found\"))","v":"Proseware, Inc."},{"$f":"TODAY()-5","v":"2016-12-16"},"08:30:00"]
[null,2,"Sami Åkesson",{"$f":"IF(Säljsamtalslogg[[#This Row],[Kund]]=\"\",\"\",IFERROR(VLOOKUP(Säljsamtalslogg[[#This Row],[Kund]],KontaktinformationFörKund[],2,0),\"Not Found\"))","v":"Litware, Inc."},{"$f":"TODAY()-5","v":"2016-12-16"},"09:00:00"]
[null,3,"Mikaela Jakobsson",{"$f":"IF(Säljsamtalslogg[[#This Row],[Kund]]=\"\",\"\",IFERROR(VLOOKUP(Säljsamtalslogg[[#This Row],[Kund]],KontaktinformationFörKund[],2,0),\"Not Found\"))","v":"Northwind Traders"},"2016-12-16","09:30:00"]
[null,4,"Tim Nyström",{"$f":"IF(Säljsamtalslogg[[#This Row],[Kund]]=\"\",\"\",IFERROR(VLOOKUP(Säljsamtalslogg[[#This Row],[Kund]],KontaktinformationFörKund[],2,0),\"Not Found\"))","v":"Lucerne Publishing"},"2016-12-16","10:00:00"]
[null,5,"Jesper Jakobsson",{"$f":"IF(Säljsamtalslogg[[#This Row],[Kund]]=\"\",\"\",IFERROR(VLOOKUP(Säljsamtalslogg[[#This Row],[Kund]],KontaktinformationFörKund[],2,0),\"Not Found\"))","v":"Margie's Travel"},"2016-12-16","10:30:00"]
[null,6,"Mattias Mattsson",{"$f":"IF(Säljsamtalslogg[[#This Row],[Kund]]=\"\",\"\",IFERROR(VLOOKUP(Säljsamtalslogg[[#This Row],[Kund]],KontaktinformationFörKund[],2,0),\"Not Found\"))","v":"Proseware, Inc."},{"$f":"TODAY()-3","v":"2016-12-18"},"11:00:00"]
[null,7,"Sami Åkesson",{"$f":"IF(Säljsamtalslogg[[#This Row],[Kund]]=\"\",\"\",IFERROR(VLOOKUP(Säljsamtalslogg[[#This Row],[Kund]],KontaktinformationFörKund[],2,0),\"Not Found\"))","v":"Litware, Inc."},{"$f":"TODAY()-3","v":"2016-12-18"},"11:30:00"]
[null,8,"Mattias Mattsson",{"$f":"IF(Säljsamtalslogg[[#This Row],[Kund]]=\"\",\"\",IFERROR(VLOOKUP(Säljsamtalslogg[[#This Row],[Kund]],KontaktinformationFörKund[],2,0),\"Not Found\"))","v":"Proseware, Inc."},{"$f":"TODAY()-1","v":"2016-12-20"},"12:00:00"]
[null,9,"Jesper Jakobsson",{"$f":"IF(Säljsamtalslogg[[#This Row],[Kund]]=\"\",\"\",IFERROR(VLOOKUP(Säljsamtalslogg[[#This Row],[Kund]],KontaktinformationFörKund[],2,0),\"Not Found\"))","v":"Margie's Travel"},{"$f":"TODAY()-1","v":"2016-12-20"},"12:30:00"]
[null,10,"Jesper Jakobsson",{"$f":"IF(Säljsamtalslogg[[#This Row],[Kund]]=\"\",\"\",IFERROR(VLOOKUP(Säljsamtalslogg[[#This Row],[Kund]],KontaktinformationFörKund[],2,0),\"Not Found\"))","v":"Margie's Travel"},{"$f":"TODAY()","v":"2016-12-21"},"13:00:00"]

{"sheet":"Kontaktinformation för kund","index":1,"n_rows":8,"n_cols":8,"rows_kept":8}
[null,{"$f":"Företagsnamn","v":" Företagets namn"}]
[null,"Kontaktinformation kund"]
[null,"Kundnamn","Företagets namn","Adress","Ort, postnummer","Primärt telefonnummer","Sekundärt telefonnummer","E-post"]
[null,"Sami Åkesson","Litware, Inc.","Storgatan 100","145 67 Stockholm","(08) 555 01 35","(08) 555 01 36","sami@litwareinc.com"]
[null,"Tim Nyström","Lucerne Publishing","Drottninggatan 567","245 37 Göteborg","(05) 555 01 98","(05) 555 01 99","tim@lucernepublishing.com"]
[null,"Jesper Jakobsson","Margie's Travel","Malmvägen 987","112 24 Kiruna","(09) 555 01 25","(09) 555 01 26","jesper@margiestravel.com"]
[null,"Mikaela Jakobsson","Northwind Traders","Ängsvägen 890","114 67 Malmö","(04) 555 01 75","(04) 555 01 76","mikaela@northwindtraders.com"]
[null,"Mattias Mattsson","Proseware, Inc.","Åkerivägen 123","167 87 Visby","(04) 555 01 50","(04) 555 01 51","mattias@proseware.com"]

{"sheet":"Innan uppringning","index":2,"n_rows":13,"n_cols":3,"rows_kept":13}
[null,{"$f":"Företagsnamn","v":" Företagets namn"}]
[null,"Checklista för säljsamtal"]
[null,"Kryssruta","Innan uppringning"]
[null,null,"Granska kundhistorik"]
[null,null,"Granska historik för kundens företag"]
[null,null,"Granska prioriteringar och säljstrategi"]
[null,null,"Lägg till objekt"]
[null,null,"Lägg till objekt"]
[null,null,"Lägg till objekt"]
[null,null,"Lägg till objekt"]
[null,null,"Lägg till objekt"]
[null,null,"Lägg till objekt"]
[null,null,"Lägg till objekt"]

{"sheet":"Första samtal","index":3,"n_rows":13,"n_cols":3,"rows_kept":13}
[null,{"$f":"Företagsnamn","v":" Företagets namn"}]
[null,"Checklista för säljsamtal"]
[null,"Kryssruta","Första samtal"]
[null,null,"Samtal med lämplig person"]
[null,null,"Tydlig inledning"]
[null,null,"Lägg till objekt"]
[null,null,"Lägg till objekt"]
[null,null,"Lägg till objekt"]
[null,null,"Lägg till objekt"]
[null,null,"Lägg till objekt"]
[null,null,"Lägg till objekt"]
[null,null,"Lägg till objekt"]
[null,null,"Lägg till objekt"]

{"sheet":"Säljinformation","index":4,"n_rows":13,"n_cols":3,"rows_kept":13}
[null,{"$f":"Företagsnamn","v":" Företagets namn"}]
[null,"Checklista för säljsamtal"]
[null,"Kryssruta","Säljinformation"]
[null,null,"Tydlig och övertygande introduktion för produkt/tjänst"]
[null,null,"Ta upp all grundläggande information"]
[null,null,"Nämn förekomst på webben (t.ex. webbplats, sociala nätverk)"]
[null,null,"Lägg till objekt"]
[null,null,"Lägg till objekt"]
[null,null,"Lägg till objekt"]
[null,null,"Lägg till objekt"]
[null,null,"Lägg till objekt"]
[null,null,"Lägg till objekt"]
[null,null,"Lägg till objekt"]

{"sheet":"Uppföljning","index":5,"n_rows":13,"n_cols":3,"rows_kept":13}
[null,{"$f":"Företagsnamn","v":" Företagets namn"}]
[null,"Checklista för säljsamtal"]
[null,"Kryssruta","Uppföljningsinformation"]
[null,null,"Kontaktinformation för kund"]
[null,null,"Personlig information för kund"]
[null,null,"Kundpreferenser"]
[null,null,"Uppskjuten kontakt?"]
[null,null,"Försäljning genomförd?"]
[null,null,"Lägg till objekt"]
[null,null,"Lägg till objekt"]
[null,null,"Lägg till objekt"]
[null,null,"Lägg till objekt"]
[null,null,"Lägg till objekt"]